bitfinex/quotes_BTCUSD_20241028
["timestamp","ask_amount","ask_price","bid_price","bid_amount"]
[1730125172173,0.32915657,68920.0,68919.0,0.141]
[1730125172174,0.19606157,68920.0,68919.0,0.141]
[1730125172386,0.17760671,68920.0,68919.0,0.286097]
[1730125172858,0.16560671,68920.0,68919.0,0.14]
[1730125173089,0.0151029,68920.0,68919.0,0.285097]
[1730125173310,0.0151029,68920.0,68919.0,0.14]
[1730125173311,0.16560671,68920.0,68919.0,0.14]
[1730125173750,0.31070171,68920.0,68919.0,0.14]
[1730125174163,0.32970171,68920.0,68919.0,0.141]
[1730125174381,0.32970171,68920.0,68919.0,0.286097]
[1730125174382,0.0341029,68920.0,68919.0,0.286097]
[1730125174596,0.0151029,68920.0,68919.0,0.290097]
[1730125175055,0.0321029,68920.0,68919.0,0.291097]
[1730125175278,0.0271029,68920.0,68919.0,0.291097]
[1730125175501,0.0151029,68920.0,68919.0,0.290097]
[1730125175723,0.0211029,68920.0,68919.0,0.145]
[1730125175979,0.0341029,68920.0,68919.0,0.141]
[1730125176188,0.32970171,68920.0,68919.0,0.141]
[1730125177089,0.0341029,68920.0,68919.0,0.291097]
[1730125178221,0.0341029,68920.0,68919.0,0.296097]
[1730125178464,0.020648,68920.0,68919.0,0.296097]
[1730125178978,0.020648,68920.0,68919.0,0.291097]
[1730125179179,0.020648,68920.0,68919.0,0.298097]
[1730125179653,0.020648,68920.0,68919.0,0.501897]
[1730125180595,0.020648,68920.0,68919.0,0.67184676]
[1730125181064,0.001648,68920.0,68919.0,0.67084676]
[1730125181286,0.002648,68920.0,68919.0,0.68884676]
[1730125181519,0.001648,68920.0,68919.0,0.67584676]
[1730125181740,0.21317477,68926.0,68925.0,0.150085]
[1730125181956,0.21317477,68926.0,68925.0,0.290085]
[1730125182184,0.001648,68932.0,68929.0,0.150076]
[1730125182423,0.01347646,68931.0,68929.0,0.290076]
[1730125182629,0.01347646,68931.0,68930.0,0.145074]
[1730125182850,0.01347646,68931.0,68930.0,0.285074]
[1730125183056,0.01347646,68931.0,68930.0,0.14]
[1730125183298,0.30905227,68931.0,68930.0,0.14]
[1730125185101,0.32205227,68931.0,68930.0,0.141]
[1730125185314,0.33554926,68931.0,68930.0,0.141]
[1730125185744,0.02697345,68931.0,68930.0,0.3136824]
[1730125185975,0.33255005,68931.0,68930.0,0.141]
[1730125187139,0.33255005,68931.0,68930.0,0.14]
[1730125187377,0.32255005,68931.0,68930.0,0.14]
[1730125187608,0.33455005,68931.0,68930.0,0.141]
[1730125187843,0.33855005,68931.0,68930.0,0.141]
[1730125188063,0.32255005,68931.0,68930.0,0.14]
[1730125188522,0.34255005,68931.0,68930.0,0.142]
[1730125189679,0.19747805,68931.0,68930.0,0.142]
[1730125189911,0.34255005,68931.0,68930.0,0.142]
[1730125191792,0.59255005,68931.0,68930.0,0.142]
[1730125193600,0.59258987,68931.0,68930.0,0.142]
[1730125194501,0.69258987,68931.0,68930.0,0.142]
[1730125194735,0.72058987,68931.0,68930.0,0.142]
[1730125196075,0.76374691,68931.0,68930.0,0.142]
[1730125196290,0.76374956,68931.0,68930.0,0.142]
[1730125196745,0.76539756,68931.0,68930.0,0.142]
[1730125196967,0.72223787,68931.0,68930.0,0.142]
[1730125197210,0.93879979,68931.0,68930.0,0.142]
[1730125197444,0.83378461,68931.0,68930.0,0.142]
[1730125197695,0.91812035,68931.0,68930.0,0.142]
[1730125197917,1.0260226,68931.0,68930.0,0.142]
[1730125198125,1.0260226,68931.0,68930.0,0.141]
[1730125198126,1.05562416,68931.0,68930.0,0.141]
[1730125198373,1.12003286,68931.0,68930.0,0.09558928]
[1730125198592,0.86862793,68931.0,68930.0,0.09558928]
[1730125198817,0.7810254,68931.0,68930.0,0.09558928]
[1730125199020,0.68874688,68931.0,68930.0,0.09458928]
[1730125199470,0.71274688,68931.0,68930.0,0.09658928]
[1730125199954,0.70331824,68931.0,68930.0,0.09658928]
[1730125200675,0.67627381,68931.0,68930.0,0.09658928]
[1730125200884,0.67627381,68931.0,68930.0,0.09458928]
[1730125200885,0.67932191,68931.0,68930.0,0.09458928]
[1730125201084,0.6977979,68931.0,68930.0,0.09458928]
[1730125201327,0.72532274,68931.0,68930.0,0.09458928]
[1730125201536,0.6837979,68931.0,68930.0,0.09458928]
[1730125201760,0.69732319,68931.0,68930.0,0.09458928]
[1730125201986,0.72532319,68931.0,68930.0,0.09458928]
[1730125202241,0.86128714,68931.0,68930.0,0.09458928]
[1730125202429,0.84728714,68931.0,68930.0,0.09458928]
[1730125202641,0.86128714,68931.0,68930.0,0.09458928]
[1730125202867,0.7117979,68931.0,68930.0,0.09458928]
[1730125203169,0.05674968,68931.0,68930.0,0.24466328]
[1730125203388,0.029698,68931.0,68930.0,0.24466328]
[1730125203854,0.015698,68931.0,68930.0,0.24466328]
[1730125204077,0.015698,68931.0,68930.0,0.09958928]
[1730125204284,0.015698,68931.0,68930.0,0.10058928]
[1730125204506,0.35232335,68931.0,68930.0,0.10058928]
[1730125204714,0.43174769,68931.0,68930.0,0.09458928]
[1730125204921,0.43274769,68931.0,68930.0,0.09458928]
[1730125205142,0.32532335,68931.0,68930.0,0.09458928]
[1730125205363,0.59832335,68931.0,68930.0,0.09458928]
[1730125205588,0.60932335,68931.0,68930.0,0.09458928]
[1730125205809,0.60832335,68931.0,68930.0,0.09458928]
[1730125206044,0.57632335,68931.0,68930.0,0.09458928]
[1730125206265,0.03074754,68931.0,68930.0,0.09958928]
[1730125206497,0.03074754,68931.0,68930.0,0.24466328]
[1730125207143,0.01722276,68931.0,68930.0,0.24566328]
[1730125207371,0.04474807,68931.0,68930.0,0.24566328]
[1730125207578,0.02874807,68931.0,68930.0,0.24466328]
[1730125207820,0.04274807,68931.0,68930.0,0.24466328]
[1730125208054,0.03122276,68931.0,68930.0,0.24466328]
[1730125208313,0.01722276,68931.0,68930.0,0.24466328]
[1730125208774,0.02622276,68931.0,68930.0,0.45306328]
[1730125208985,0.012698,68931.0,68930.0,0.45306328]
[1730125209210,0.003698,68931.0,68930.0,0.45306328]
[1730125209665,0.001648,68932.0,68930.0,0.45306328]
[1730125209666,0.001648,68932.0,68931.0,0.365472]
[1730125209916,0.21652677,68949.0,68948.0,0.155036]
[1730125210100,0.21652677,68949.0,68948.0,0.69779737]
[1730125210331,0.21652677,68959.0,68948.0,0.69779737]
[1730125210332,0.21652677,68959.0,68958.0,0.53036476]
[1730125210562,0.21652677,68959.0,68958.0,0.75500522]
[1730125210803,5e-05,68960.0,68959.0,0.152013]
[1730125211004,5e-05,68960.0,68959.0,0.272013]
[1730125211241,5e-05,68960.0,68959.0,0.30449521]
[1730125211491,0.001648,68963.0,68962.0,0.157007]
[1730125211721,0.001648,68963.0,68962.0,0.58760664]
[1730125211923,0.001644,68969.0,68965.0,0.234985]
[1730125212149,0.001644,68969.0,68968.0,0.40158422]
[1730125212385,0.00505,68980.0,68973.0,0.146984]
[1730125212605,0.00505,68980.0,68973.0,0.53657422]
[1730125212854,0.289943,68979.0,68973.0,0.135]
[1730125213091,0.15050381,68978.0,68973.0,0.13]
[1730125213310,0.149982,68974.0,68973.0,0.13]
[1730125213522,0.30048581,68974.0,68973.0,0.13]
[1730125213759,0.31394737,68974.0,68973.0,0.13]
[1730125214626,0.31394737,68974.0,68973.0,0.131]
[1730125214627,0.32593619,68974.0,68973.0,0.131]
[1730125214851,0.31393619,68974.0,68973.0,0.13]
[1730125215359,0.31393619,68974.0,68973.0,0.16425]
[1730125215360,0.18150381,68974.0,68973.0,0.16425]
[1730125215603,0.18150381,68974.0,68973.0,0.131]
[1730125215835,0.31248581,68974.0,68973.0,0.131]
[1730125216280,0.16750381,68974.0,68973.0,0.131]
[1730125216506,0.16750381,68974.0,68973.0,0.13]
[1730125216507,0.005,68974.0,68973.0,0.13]
[1730125216744,0.30048581,68974.0,68973.0,0.13]
[1730125216983,0.30048581,68974.0,68973.0,0.131]
[1730125216984,0.16950381,68974.0,68973.0,0.131]
[1730125217235,0.15550381,68974.0,68973.0,0.13]
[1730125217479,0.005,68979.0,68973.0,0.13]
[1730125217742,5e-05,68980.0,68973.0,0.3274331]
[1730125217743,0.015,68974.0,68973.0,0.3274331]
[1730125217985,5e-05,68980.0,68979.0,0.144971]
[1730125218230,5e-05,68980.0,68979.0,0.279971]
[1730125218480,5e-05,68980.0,68979.0,0.30161533]
[1730125218700,5e-05,68980.0,68979.0,0.38421533]
[1730125218921,0.001648,68986.0,68979.0,0.23924433]
[1730125219131,0.001648,68986.0,68985.0,0.40454922]
[1730125219361,0.001648,68986.0,68985.0,0.52454922]
[1730125219603,0.001648,68986.0,68985.0,0.271959]
[1730125221693,0.001648,68986.0,68985.0,0.127]
[1730125221919,0.146604,68986.0,68985.0,0.129]
[1730125222151,0.150604,68986.0,68985.0,0.129]
[1730125222369,0.146604,68986.0,68985.0,0.129]
[1730125222668,0.29710781,68986.0,68985.0,0.12]
[1730125222893,0.30210781,68986.0,68985.0,0.12]
[1730125223781,0.16315181,68986.0,68985.0,0.123]
[1730125224011,0.007648,68986.0,68985.0,0.12]
[1730125224256,0.007648,68986.0,68985.0,0.462359]
[1730125224484,0.021648,68986.0,68985.0,0.463359]
[1730125224707,0.015648,68986.0,68985.0,0.463359]
[1730125225168,0.034648,68986.0,68985.0,0.467359]
[1730125225368,0.013648,68986.0,68985.0,0.465359]
[1730125225590,0.001648,68986.0,68985.0,0.464359]
[1730125226011,0.003648,68986.0,68985.0,0.464359]
[1730125226230,0.003648,68986.0,68985.0,0.462359]
[1730125226653,0.001648,68986.0,68985.0,0.462359]
[1730125227511,0.001648,68986.0,68985.0,0.464359]
[1730125228158,0.004648,68986.0,68985.0,0.464359]
[1730125228612,0.013648,68986.0,68985.0,0.71994922]
[1730125229096,0.020648,68986.0,68985.0,0.72094922]
[1730125229535,0.013648,68986.0,68985.0,0.72668999]
[1730125229756,0.014648,68986.0,68985.0,0.8931938]
[1730125230226,0.014648,68986.0,68985.0,0.3264]
[1730125230441,0.002648,68986.0,68985.0,0.3234]
[1730125230877,0.002648,68986.0,68985.0,0.3244]
[1730125231080,0.002648,68986.0,68985.0,0.503999]
[1730125231290,0.002648,68986.0,68985.0,0.471359]
[1730125231504,0.002648,68986.0,68985.0,0.3264]
[1730125231710,0.002648,68986.0,68985.0,0.471359]
[1730125234346,0.002648,68986.0,68985.0,0.3194]
[1730125234566,0.147604,68986.0,68985.0,0.3194]
[1730125234807,0.147604,68986.0,68985.0,0.127]
[1730125235009,0.31653637,68986.0,68985.0,0.127]
[1730125235462,0.32998055,68986.0,68985.0,0.127]
[1730125235881,0.32898055,68986.0,68985.0,0.121]
[1730125236107,0.34098055,68986.0,68985.0,0.122]
[1730125237189,0.34098055,68986.0,68985.0,0.121]
[1730125237190,0.28593655,68986.0,68985.0,0.121]
[1730125237423,0.28594913,68986.0,68985.0,0.121]
[1730125237667,0.29894913,68986.0,68985.0,0.122]
[1730125237925,0.27394913,68986.0,68985.0,0.12]
[1730125238112,0.28694913,68986.0,68985.0,0.1332824]
[1730125238340,0.28694913,68986.0,68985.0,0.121]
[1730125238554,0.30853524,68986.0,68985.0,0.121]
[1730125238990,0.30853524,68986.0,68985.0,0.12]
[1730125239205,0.30653524,68986.0,68985.0,0.121]
[1730125240577,0.31953524,68986.0,68985.0,0.122]
[1730125241721,0.05904287,68986.0,68985.0,0.122]
[1730125241900,0.03745676,68986.0,68985.0,0.271959]
[1730125242537,0.03745676,68986.0,68985.0,0.273959]
[1730125242779,0.024,68986.0,68985.0,0.273959]
[1730125242998,0.024,68986.0,68985.0,0.394159]
[1730125243664,0.024,68986.0,68985.0,0.63086281]
[1730125243875,0.001642,68989.0,68985.0,0.48390381]
[1730125244083,0.001642,68989.0,68988.0,0.151952]
[1730125244352,0.001642,68989.0,68988.0,0.271952]
[1730125244603,0.001642,68989.0,68988.0,0.67704603]
[1730125244842,0.001642,69001.0,68999.0,0.344129]
[1730125245061,0.001642,69001.0,68999.0,0.464129]
[1730125245535,0.21652677,69013.0,69012.0,0.007]
[1730125245757,0.21652677,69013.0,69012.0,0.464102]
[1730125246178,0.005,69021.0,69017.0,0.144891]
[1730125246382,0.01516925,69018.0,69017.0,0.146891]
[1730125246593,0.01516925,69018.0,69017.0,0.286891]
[1730125247034,0.01516925,69018.0,69017.0,0.29478851]
[1730125247469,0.001642,69018.0,69017.0,0.29478851]
[1730125247889,0.012642,69018.0,69017.0,0.29578851]
[1730125248367,0.018642,69018.0,69017.0,0.29678851]
[1730125248556,0.007642,69018.0,69017.0,0.29578851]
[1730125248760,0.001642,69018.0,69017.0,0.29478851]
[1730125248991,0.001642,69018.0,69017.0,0.44529232]
[1730125249214,0.002642,69018.0,69017.0,0.45139481]
[1730125250102,0.002642,69018.0,69017.0,0.45539481]
[1730125250332,0.002642,69018.0,69017.0,0.45139481]
[1730125250546,0.001642,69018.0,69017.0,0.44639481]
[1730125250983,0.002642,69018.0,69017.0,0.45639481]
[1730125251391,0.001642,69018.0,69017.0,0.44239481]
[1730125251830,0.001642,69018.0,69017.0,0.44439481]
[1730125252324,0.002642,69018.0,69017.0,0.45339481]
[1730125252780,0.002642,69018.0,69017.0,0.302891]
[1730125253187,0.002642,69018.0,69017.0,0.30578841]
[1730125253426,0.002642,69018.0,69017.0,0.302891]
[1730125253656,0.001642,69018.0,69017.0,0.293891]
[1730125253859,0.001642,69018.0,69017.0,0.29678832]
[1730125254066,0.002642,69018.0,69017.0,0.30378832]
[1730125254321,0.002642,69018.0,69017.0,0.80888235]
[1730125254523,0.002642,69018.0,69017.0,1.11118503]
[1730125255609,0.000824,69025.0,69019.0,0.456887]
[1730125255837,0.000824,69025.0,69019.0,0.74739081]
[1730125256309,0.000824,69025.0,69019.0,0.74939081]
[1730125256530,0.000824,69025.0,69019.0,0.74739081]
[1730125256743,0.000824,69025.0,69021.0,0.344083]
[1730125256953,0.000824,69025.0,69021.0,0.63458681]
[1730125257164,0.000824,69025.0,69021.0,0.63658681]
[1730125257390,0.000824,69025.0,69021.0,0.63458681]
[1730125258255,0.001824,69022.0,69021.0,0.64858681]
[1730125258526,0.001824,69022.0,69021.0,0.65546727]
[1730125258737,0.001824,69022.0,69021.0,0.66946727]
[1730125259602,0.000824,69022.0,69021.0,0.65546727]
[1730125259864,0.001824,69022.0,69021.0,0.66746727]
[1730125260091,0.001824,69022.0,69021.0,0.64146727]
[1730125260306,0.001824,69022.0,69021.0,0.65146727]
[1730125260526,0.002824,69022.0,69021.0,0.65746727]
[1730125260739,0.000824,69022.0,69021.0,0.64146727]
[1730125261195,0.001824,69022.0,69021.0,0.64746727]
[1730125261666,0.000824,69022.0,69021.0,0.65146727]
[1730125263007,0.000824,69022.0,69021.0,0.64146727]
[1730125263241,0.001824,69022.0,69021.0,0.64746727]
[1730125263454,0.001824,69022.0,69021.0,0.65746727]
[1730125264417,0.001824,69022.0,69021.0,0.307883]
[1730125264627,0.001824,69022.0,69021.0,0.161]
[1730125264841,0.146705,69022.0,69021.0,0.161]
[1730125265043,0.001824,69022.0,69021.0,0.161]
[1730125265470,0.146705,69022.0,69021.0,0.156]
[1730125265691,0.16012818,69022.0,69021.0,0.156]
[1730125265898,0.15512818,69022.0,69021.0,0.156]
[1730125266115,0.15512818,69022.0,69021.0,0.146]
[1730125266366,0.01342318,69022.0,69021.0,0.1706]
[1730125266567,0.000824,69025.0,69024.0,0.146877]
[1730125266790,0.000824,69025.0,69024.0,0.286877]
[1730125266997,0.01925859,69025.0,69024.0,0.286877]
[1730125267211,0.005824,69025.0,69024.0,0.286877]
[1730125267509,0.000824,69025.0,69024.0,0.33637043]
[1730125267709,0.000824,69025.0,69024.0,0.41847043]
[1730125268168,0.018824,69025.0,69024.0,0.33837043]
[1730125268594,0.018824,69025.0,69024.0,0.293877]
[1730125268805,0.018824,69025.0,69024.0,0.149]
[1730125269242,0.163699,69025.0,69024.0,0.147]
[1730125269471,0.145699,69025.0,69024.0,0.145]
[1730125269682,0.15916319,69025.0,69024.0,0.145]
[1730125269896,0.15916319,69025.0,69024.0,0.15]
[1730125270323,0.01428819,69025.0,69024.0,0.147]
[1730125270541,0.17764459,69025.0,69024.0,0.14]
[1730125270746,0.19164459,69025.0,69024.0,0.142]
[1730125271824,0.21325125,69025.0,69024.0,0.142]
[1730125273163,0.17816319,69025.0,69024.0,0.142]
[1730125273592,0.58283424,69025.0,69024.0,0.142]
[1730125273847,0.68283424,69025.0,69024.0,0.142]
[1730125274094,0.85274053,69025.0,69024.0,0.142]
[1730125274308,1.3944041,69025.0,69024.0,0.0268]
[1730125274524,0.74206686,69025.0,69024.0,0.101]
[1730125274731,0.89257067,69025.0,69024.0,0.101]
[1730125274938,0.92327598,69025.0,69024.0,0.102]
[1730125275202,0.48343445,69025.0,69024.0,0.102]
[1730125275422,0.98760169,69025.0,69024.0,0.102]
[1730125275639,0.95989638,69025.0,69024.0,0.101]
[1730125275851,1.00807475,69025.0,69024.0,0.0693513]
[1730125276061,0.96490055,69025.0,69024.0,0.0683513]
[1730125276272,1.0000798,69025.0,69024.0,0.0683513]
[1730125276497,0.95237005,69025.0,69024.0,0.0683513]
[1730125276714,0.95237005,69025.0,69024.0,0.141]
[1730125276715,1.15054846,69025.0,69024.0,0.141]
[1730125277142,1.16454846,69025.0,69024.0,0.142]
[1730125277367,1.13754846,69025.0,69024.0,0.14]
[1730125277579,1.15154846,69025.0,69024.0,0.141]
[1730125277808,1.16554846,69025.0,69024.0,0.141]
[1730125278247,1.16807137,69025.0,69024.0,0.141]
[1730125278675,1.19077735,69025.0,69024.0,0.141]
[1730125279159,1.32840235,69025.0,69024.0,0.141]
[1730125280031,1.30569637,69025.0,69024.0,0.141]
[1730125280219,1.32840288,69025.0,69024.0,0.141]
[1730125280474,0.79027407,69025.0,69024.0,0.141]
[1730125280678,1.04027407,69025.0,69024.0,0.141]
[1730125281356,0.182883,69021.0,69020.0,0.000823]
[1730125281569,0.182883,69021.0,69017.0,0.1]
[1730125281570,0.78705624,69018.0,69017.0,0.1]
[1730125281776,2.42206146,69018.0,69017.0,0.1]
[1730125281994,2.28296946,69018.0,69017.0,0.23]
[1730125282206,2.30567822,69018.0,69017.0,0.23]
[1730125282422,2.30567822,69018.0,69017.0,0.08511]
[1730125282629,2.30567822,69018.0,69017.0,1e-06]
[1730125282898,0.509906,69010.0,69009.0,0.21652677]
[1730125283128,1.07849722,69010.0,69009.0,0.35652677]
[1730125283346,0.98625165,69010.0,69009.0,0.35652677]
[1730125283568,1.00896147,69010.0,69009.0,0.14]
[1730125284011,1.00879669,69010.0,69009.0,0.14]
[1730125284470,0.98608687,69010.0,69009.0,0.14]
[1730125285369,0.99508687,69010.0,69009.0,0.14]
[1730125285584,1.00008687,69010.0,69009.0,0.14]
[1730125286015,0.98608687,69010.0,69009.0,0.14]
[1730125286238,1.00008687,69010.0,69009.0,0.141]
[1730125286515,1.01408687,69010.0,69009.0,0.141]
[1730125286756,0.91555612,69010.0,69009.0,0.14]
[1730125286962,0.89155612,69010.0,69009.0,0.14]
[1730125287165,0.91555612,69010.0,69009.0,0.141]
[1730125287590,0.91555612,69010.0,69009.0,0.14]
[1730125287591,1.05205993,69010.0,69009.0,0.14]
[1730125287806,0.90155612,69010.0,69009.0,0.14]
[1730125288034,0.89655612,69010.0,69009.0,0.14]
[1730125288662,0.91055612,69010.0,69009.0,0.14]
[1730125288879,0.92455612,69010.0,69009.0,0.141]
[1730125289295,0.89655612,69010.0,69009.0,0.14]
[1730125289503,0.92455612,69010.0,69009.0,0.141]
[1730125289709,1.07505993,69010.0,69009.0,0.141]
[1730125290797,1.09777012,69010.0,69009.0,0.141]
[1730125291443,1.09777186,69010.0,69009.0,0.141]
[1730125292769,1.09777186,69010.0,69009.0,0.1083434]
[1730125293428,1.07621087,69010.0,69009.0,0.1083434]
[1730125294559,1.46237413,69010.0,69009.0,0.1083434]
[1730125294771,0.31958649,68989.0,68988.0,0.21734977]
[1730125294981,0.31958649,68989.0,68988.0,0.34734977]
[1730125295191,0.34657813,68989.0,68988.0,0.34734977]
[1730125295417,0.34657813,68989.0,68988.0,0.130823]
[1730125295418,0.17694139,68989.0,68988.0,0.130823]
[1730125295670,0.02699139,68989.0,68988.0,0.130823]
[1730125295912,0.005,68993.0,68992.0,0.144944]
[1730125296107,0.21652677,69000.0,68992.0,0.144944]
[1730125296108,0.005,68994.0,68993.0,0.144942]
[1730125296338,0.0185013,68994.0,68993.0,0.144942]
[1730125296564,0.0185013,68994.0,68993.0,0.284942]
[1730125296782,0.0185013,68994.0,68993.0,0.14]
[1730125297009,0.1634413,68994.0,68993.0,0.14]
[1730125297254,0.17694235,68994.0,68993.0,0.14]
[1730125297710,0.17694235,68994.0,68993.0,0.145]
[1730125298007,0.1634413,68994.0,68993.0,0.14]
[1730125298264,0.0185013,68994.0,68993.0,0.145]
[1730125298502,0.0275013,68994.0,68993.0,0.470342]
[1730125298742,0.0275013,68994.0,68993.0,0.3254]
[1730125298973,0.0355013,68994.0,68993.0,0.3254]
[1730125299213,0.1804413,68994.0,68993.0,0.3204]
[1730125299629,0.19396335,68994.0,68993.0,0.3204]
[1730125301611,0.19396335,68994.0,68993.0,0.2374]
[1730125301612,0.34948903,68994.0,68993.0,0.2374]
[1730125302076,0.34948903,68994.0,68993.0,0.14]
[1730125302077,0.44948903,68994.0,68993.0,0.14]
[1730125302300,0.44544381,68994.0,68993.0,0.14]
[1730125302539,0.62306185,68994.0,68993.0,0.14]
[1730125302768,0.83963862,68994.0,68993.0,0.14]
[1730125302970,0.532967,68981.0,68975.0,0.21652677]
[1730125303185,0.88022153,68981.0,68980.0,0.100824]
[1730125303882,0.70058504,68981.0,68980.0,0.100824]
[1730125304988,0.71458504,68981.0,68980.0,0.100824]
[1730125305194,0.69158504,68981.0,68980.0,0.100824]
[1730125306138,0.94556615,68981.0,68980.0,0.100824]
[1730125306795,0.70558504,68981.0,68980.0,0.100824]
[1730125307436,0.89822153,68981.0,68980.0,0.100824]
[1730125307859,0.70563504,68981.0,68980.0,0.100824]
[1730125308308,0.87527153,68981.0,68980.0,0.100824]
[1730125309690,0.87517071,68981.0,68980.0,0.100824]
[1730125311013,0.70553422,68981.0,68980.0,0.100824]
[1730125311252,0.7282516,68981.0,68980.0,0.100824]
[1730125311467,0.45553422,68981.0,68980.0,0.100824]
[1730125313037,0.47825151,68981.0,68980.0,0.100824]
[1730125313269,0.647888,68981.0,68980.0,0.100824]
[1730125315278,0.62517071,68981.0,68980.0,0.100824]
[1730125315951,0.45553422,68981.0,68980.0,0.100824]
[1730125316394,0.35553422,68981.0,68980.0,0.197724]
[1730125317300,0.3415311,68981.0,68980.0,0.197724]
[1730125317517,0.3415311,68981.0,68980.0,0.285924]
[1730125317518,0.04106029,68981.0,68980.0,0.285924]
[1730125317741,0.04155358,68981.0,68980.0,0.430893]
[1730125317941,0.05506083,68981.0,68980.0,0.430893]
[1730125318160,0.0550592,68981.0,68980.0,0.430893]
[1730125318421,0.0410592,68981.0,68980.0,0.430893]
[1730125318827,0.02755358,68981.0,68980.0,0.430893]
[1730125319113,0.01355358,68981.0,68980.0,0.430893]
[1730125319314,0.02755358,68981.0,68980.0,0.285924]
[1730125319522,0.04106353,68981.0,68980.0,0.287924]
[1730125319750,0.18603053,68981.0,68980.0,0.280924]
[1730125319971,0.18603053,68981.0,68980.0,0.285924]
[1730125319972,0.04106353,68981.0,68980.0,0.285924]
[1730125320408,0.45427407,68981.0,68980.0,0.280924]
[1730125321058,0.35553434,68981.0,68980.0,0.280924]
[1730125321277,0.35555135,68981.0,68980.0,0.280924]
[1730125321484,0.35555135,68981.0,68980.0,0.100824]
[1730125321485,0.37855135,68981.0,68980.0,0.100824]
[1730125321693,0.60555135,68981.0,68980.0,0.100824]
[1730125323028,0.62826838,68981.0,68980.0,0.100824]
[1730125323461,0.89336131,68981.0,68980.0,0.100824]
[1730125323678,0.93653378,68981.0,68980.0,0.100824]
[1730125324121,0.90336131,68981.0,68980.0,0.100824]
[1730125324377,0.90336131,68981.0,68980.0,0.042836]
[1730125324378,2.17508749,68981.0,68980.0,0.042836]
[1730125324617,2.17508749,68981.0,68973.0,0.000824]
[1730125324618,0.532982,68974.0,68973.0,0.000824]
[1730125324929,0.532982,68974.0,68949.0,0.0982]
[1730125324930,0.522998,68966.0,68949.0,0.0982]
[1730125325161,1.03681483,68966.0,68965.0,0.33652677]
[1730125325411,1.62278013,68966.0,68965.0,0.12]
[1730125325637,1.62278013,68966.0,68944.0,0.21652677]
[1730125325638,0.510028,68952.0,68944.0,0.21652677]
[1730125325844,0.8531683,68952.0,68951.0,0.26652677]
[1730125326080,0.88019884,68952.0,68951.0,0.12]
[1730125326300,0.255,68940.0,68924.0,0.00582]
[1730125326571,0.88022384,68940.0,68939.0,0.03082]
[1730125326793,0.88022384,68940.0,68924.0,0.00082]
[1730125326794,0.533072,68931.0,68928.0,0.21652677]
[1730125327022,2.11606484,68931.0,68930.0,0.120824]
[1730125327271,0.88024284,68931.0,68930.0,0.120824]
[1730125327534,0.87024284,68931.0,68930.0,0.120824]
[1730125327797,0.42760635,68931.0,68930.0,0.120824]
[1730125328021,0.32760635,68931.0,68930.0,0.202724]
[1730125329424,0.34160635,68931.0,68930.0,0.202724]
[1730125329929,0.32760635,68931.0,68930.0,0.202724]
[1730125330156,0.34160635,68931.0,68930.0,0.202724]
[1730125330582,0.34154191,68931.0,68930.0,0.202724]
[1730125331698,0.69648284,68931.0,68930.0,0.120824]
[1730125331910,0.72948284,68931.0,68930.0,0.120824]
[1730125332119,0.92298684,68931.0,68930.0,0.120824]
[1730125332333,0.93698684,68931.0,68930.0,0.120824]
[1730125332578,0.92298684,68931.0,68930.0,0.120824]
[1730125332786,0.86598665,68931.0,68930.0,0.120824]
[1730125333018,0.46954191,68931.0,68930.0,0.120824]
[1730125333459,0.45554191,68931.0,68930.0,0.120824]
[1730125333662,0.4554667,68931.0,68930.0,0.120824]
[1730125333903,0.43552792,68931.0,68930.0,0.120824]
[1730125334327,0.44953004,68931.0,68930.0,0.120824]
[1730125334534,0.43553004,68931.0,68930.0,0.120824]
[1730125334756,0.72161742,68931.0,68930.0,0.120824]
[1730125334988,0.44896267,68931.0,68930.0,0.120824]
[1730125335418,0.46296267,68931.0,68930.0,0.120824]
[1730125335847,0.44896267,68931.0,68930.0,0.120824]
[1730125336052,0.48569665,68931.0,68930.0,0.120824]
[1730125336301,0.46296267,68931.0,68930.0,0.120824]
[1730125336527,0.46296267,68931.0,68930.0,0.378998]
[1730125336528,0.06243686,68931.0,68930.0,0.378998]
[1730125336732,0.06243686,68931.0,68930.0,0.4739628]
[1730125336970,0.06243686,68931.0,68930.0,0.4759628]
[1730125337167,0.07643686,68931.0,68930.0,0.463798]
[1730125337384,0.04150615,68931.0,68930.0,0.463798]
[1730125337604,0.02805,68931.0,68930.0,0.463798]
[1730125338882,0.02805,68931.0,68930.0,0.316724]
[1730125339329,0.02805,68931.0,68930.0,0.318724]
[1730125339545,0.02805,68931.0,68930.0,0.311724]
[1730125339764,0.02805,68931.0,68930.0,0.461798]
[1730125340211,0.02805,68931.0,68930.0,0.463798]
[1730125341566,0.02805,68931.0,68930.0,0.71873893]
[1730125341988,0.02805,68931.0,68930.0,0.463798]
[1730125342419,0.01405,68931.0,68930.0,0.456798]
[1730125342649,0.01405,68931.0,68930.0,0.316724]
[1730125342873,0.00105,68931.0,68930.0,0.316724]
[1730125343317,0.29662581,68931.0,68930.0,0.311724]
[1730125343544,0.35519383,68931.0,68930.0,0.311724]
[1730125343760,0.35419383,68931.0,68930.0,0.311724]
[1730125344039,0.30906963,68931.0,68930.0,0.311724]
[1730125344279,0.02749382,68931.0,68930.0,0.461798]
[1730125344524,0.01405,68931.0,68930.0,0.461798]
[1730125344723,5e-05,68931.0,68930.0,0.316724]
[1730125344925,5e-05,68931.0,68930.0,0.463798]
[1730125345361,0.01405,68931.0,68930.0,0.463798]
[1730125345806,5e-05,68931.0,68930.0,0.463798]
[1730125346269,0.00605,68931.0,68930.0,0.463798]
[1730125346710,0.02005,68931.0,68930.0,0.71873893]
[1730125347202,5e-05,68940.0,68938.0,0.152057]
[1730125347446,5e-05,68940.0,68938.0,0.72889874]
[1730125347686,5e-05,68940.0,68938.0,0.72599793]
[1730125348180,5e-05,68940.0,68939.0,0.015]
[1730125348398,0.21652677,68946.0,68945.0,0.59178393]
[1730125348638,0.21652677,68946.0,68945.0,0.73178393]